bitfinex/quotes_SOLUSD_20230116
["timestamp","ask_amount","ask_price","bid_price","bid_amount"]
[1673853867740,20.0,24.459,24.43,12.18935716]
[1673853867929,50.91896267,24.459,24.431,20.0]
[1673853868140,20.0,24.457,24.431,20.0]
[1673853868583,20.0,24.457,24.431,32.18935716]
[1673853868777,20.0,24.457,24.432,17.0]
[1673853869199,20.0,24.457,24.433,20.0]
[1673853869408,20.0,24.457,24.434,17.0]
[1673853869631,20.0,24.457,24.431,12.18935716]
[1673853869844,20.0,24.449,24.423,30.01037507]
[1673853870058,20.0,24.449,24.412,20.0]
[1673853870245,20.0,24.448,24.411,119.693]
[1673853870461,50.91896267,24.448,24.411,119.693]
[1673853870672,20.0,24.447,24.412,32.18935716]
[1673853870881,20.0,24.447,24.412,44.37871432]
[1673853871092,20.0,24.447,24.413,12.18935716]
[1673853871845,20.0,24.447,24.414,20.0]
[1673853872244,20.0,24.447,24.415,12.18935716]
[1673853872453,20.0,24.447,24.412,20.0]
[1673853872666,20.0,24.447,24.412,32.18935716]
[1673853872879,20.0,24.447,24.414,20.0]
[1673853873189,20.0,24.447,24.412,20.0]
[1673853873190,20.0,24.447,24.412,12.18935716]
[1673853873407,20.0,24.445,24.408,135.1524]
[1673853873738,20.0,24.439,24.409,20.0]
[1673853874135,19.08,24.43,24.4,20.0]
[1673853874345,109.5618,24.429,24.4,20.0]
[1673853874677,20.0,24.428,24.397,20.0]
[1673853874902,20.0,24.428,24.397,32.18935716]
[1673853875204,20.0,24.428,24.398,12.18935716]
[1673853875514,19.08,24.42,24.396,14.889531]
[1673853875732,20.0,24.419,24.396,14.889531]
[1673853875932,55.99725667,24.419,24.396,14.889531]
[1673853876336,20.0,24.419,24.396,14.889531]
[1673853877184,101.63598604,24.419,24.396,14.889531]
[1673853877611,20.0,24.417,24.396,14.889531]
[1673853878038,20.0,24.415,24.396,14.889531]
[1673853878451,69.40947898,24.415,24.396,14.889531]
[1673853878869,109.2835,24.414,24.396,14.889531]
[1673853879076,20.0,24.413,24.396,14.889531]
[1673853879602,20.0,24.413,24.396,13.389531]
[1673853880145,18.93,24.41,24.396,13.389531]
[1673853880559,129.95996354,24.409,24.396,13.389531]
[1673853880880,20.0,24.408,24.396,13.389531]
[1673853881078,20.0,24.408,24.372,20.0]
[1673853881079,128.63801954,24.408,24.372,20.0]
[1673853881294,108.63801954,24.407,24.372,20.0]
[1673853881494,20.0,24.406,24.395,12.991756]
[1673853881703,70.68913306,24.406,24.395,12.991756]
[1673853882140,50.63279973,24.405,24.395,12.991756]
[1673853882450,20.0,24.404,24.372,20.0]
[1673853882665,20.0,24.404,24.368,20.0]
[1673853882666,18.94,24.4,24.393,16.40353]
[1673853882874,20.0,24.399,24.367,20.0]
[1673853883487,20.0,24.399,24.367,36.407171]
[1673853883717,20.0,24.399,24.368,20.0]
[1673853884361,20.0,24.399,24.369,20.0]
[1673853884557,20.0,24.399,24.37,20.0]
[1673853885297,20.0,24.399,24.368,20.0]
[1673853885506,20.0,24.399,24.369,20.0]
[1673853885721,24.94,24.4,24.37,20.0]
[1673853885951,6.0,24.4,24.371,20.0]
[1673853886143,6.0,24.4,24.371,32.18935716]
[1673853886357,6.0,24.4,24.373,20.0]
[1673853886569,6.0,24.4,24.374,20.0]
[1673853887189,6.0,24.4,24.372,20.0]
[1673853887398,6.0,24.4,24.373,20.0]
[1673853887717,6.0,24.4,24.374,20.0]
[1673853887929,6.0,24.4,24.374,32.18935716]
[1673853888133,6.0,24.4,24.375,57.632468]
[1673853888345,6.0,24.4,24.38,18.91]
[1673853888555,109.2835,24.414,24.381,21.98462]
[1673853888776,115.4353,24.425,24.382,21.98454]
[1673853888980,20.0,24.424,24.383,21.98446]
[1673853889202,20.0,24.424,24.384,20.0]
[1673853889411,20.0,24.424,24.385,21.98429]
[1673853889608,20.0,24.424,24.386,21.98421]
[1673853889818,20.0,24.424,24.388,20.0]
[1673853890023,20.0,24.424,24.389,20.0]
[1673853890451,20.0,24.424,24.39,20.0]
[1673853890873,20.0,24.424,24.392,20.0]
[1673853891195,20.0,24.424,24.393,20.0]
[1673853891598,20.0,24.424,24.393,32.18935716]
[1673853892244,52.91581467,24.424,24.393,32.18935716]
[1673853892878,52.91581467,24.424,24.394,12.18935716]
[1673853893091,52.91581467,24.424,24.395,20.0]
[1673853893718,20.0,24.424,24.395,20.0]
[1673853894997,20.0,24.424,24.395,32.18935716]
[1673853895918,20.0,24.424,24.396,20.0]
[1673853896345,20.0,24.424,24.396,32.18935716]
[1673853896772,20.0,24.424,24.397,17.0]
[1673853897300,20.0,24.424,24.397,29.18935716]
[1673853898547,20.0,24.424,24.398,20.0]
[1673853898964,115.4353,24.425,24.4,20.0]
[1673853899180,115.4353,24.425,24.401,17.0]
[1673853899387,115.4353,24.425,24.402,20.0]
[1673853899717,115.4353,24.425,24.404,20.0]
[1673853899919,115.4353,24.425,24.405,17.0]
[1673853900121,115.4353,24.425,24.406,20.0]
[1673853900332,115.4353,24.425,24.408,20.0]
[1673853900543,113.9601,24.427,24.409,17.0]
[1673853901389,113.9601,24.427,24.41,39.07]
[1673853901599,113.9601,24.427,24.411,37.0]
[1673853901805,113.9601,24.427,24.411,84.27133417]
[1673853902022,113.9601,24.427,24.412,67.27133417]
[1673853902220,113.9601,24.427,24.414,20.0]
[1673853902430,113.9601,24.427,24.415,37.0]
[1673853902852,113.9601,24.427,24.416,20.0]
[1673853905168,113.9601,24.427,24.416,67.27133417]
[1673853905368,113.9601,24.427,24.416,79.46069133]
[1673853905581,113.9601,24.427,24.42,19.07]
[1673853905805,110.9271,24.438,24.421,20.0]
[1673853905998,118.4533,24.44,24.422,1.98129]
[1673853906212,118.4533,24.44,24.423,20.0]
[1673853906420,118.4533,24.44,24.424,20.0]
[1673853906650,118.4533,24.44,24.424,32.18935716]
[1673853906859,118.4533,24.44,24.426,20.0]
[1673853907260,118.4533,24.44,24.427,59.46069133]
[1673853907485,118.4533,24.44,24.428,20.0]
[1673853907699,118.4533,24.44,24.429,20.0]
[1673853907907,118.4533,24.44,24.43,20.0]
[1673853908230,118.4533,24.44,24.431,20.0]
[1673853908428,118.4533,24.44,24.431,59.46069133]
[1673853908757,118.4533,24.44,24.432,79.46069133]
[1673853909068,118.4533,24.44,24.433,59.46069133]
[1673853909377,117.0036,24.451,24.434,67.27133417]
[1673853909592,20.0,24.465,24.434,79.46069133]
[1673853909788,20.0,24.465,24.435,59.46069133]
[1673853910002,119.5033,24.464,24.436,20.0]
[1673853910215,20.0,24.463,24.437,20.0]
[1673853910434,20.0,24.463,24.437,125.27832974]
[1673853910635,20.0,24.463,24.438,55.41800084]
[1673853910854,119.5033,24.464,24.438,117.4676869]
[1673853911056,119.5033,24.464,24.44,19.07]
[1673853911269,119.5033,24.464,24.441,20.0]
[1673853911475,119.5033,24.464,24.442,21.97967]
[1673853911684,119.5033,24.464,24.443,1.97958]
[1673853911890,119.5033,24.464,24.443,39.65055174]
[1673853912097,20.0,24.463,24.444,59.4046675]
[1673853912312,20.0,24.463,24.444,97.07563924]
[1673853912541,20.0,24.463,24.445,37.67097174]
[1673853913165,20.0,24.463,24.431,20.0]
[1673853913375,20.0,24.463,24.433,20.0]
[1673853913596,20.0,24.463,24.434,20.0]
[1673853913793,20.0,24.463,24.435,21.98023]
[1673853914001,20.0,24.463,24.436,20.0]
[1673853914211,119.5033,24.464,24.437,20.0]
[1673853914423,119.5033,24.464,24.438,1.97999]
[1673853914627,119.5033,24.464,24.439,20.0]
[1673853914945,20.0,24.463,24.441,20.0]
[1673853915151,119.5033,24.464,24.442,20.0]
[1673853915362,119.5033,24.464,24.442,54.90957354]
[1673853915696,119.5033,24.464,24.443,92.22790512]
[1673853916095,119.5033,24.464,24.445,20.0]
[1673853916308,118.0033,24.464,24.445,20.0]
[1673853916521,118.0033,24.464,24.446,112.67499178]
[1673853916833,20.0,24.463,24.442,20.0]
[1673853917059,20.0,24.463,24.447,57.76541824]
[1673853917399,20.0,24.463,24.43,19.07]
[1673853917693,20.0,24.463,24.43,44.32006424]
[1673853918008,20.0,24.463,24.431,44.32006424]
[1673853918950,20.0,24.463,24.432,17.0]
[1673853919356,20.0,24.463,24.433,59.45608807]
[1673853919681,20.0,24.463,24.435,20.0]
[1673853919882,20.0,24.463,24.436,17.0]
[1673853920089,20.0,24.463,24.437,1.98007]
[1673853920313,20.0,24.463,24.437,61.43615807]
[1673853920631,20.0,24.463,24.438,47.26673091]
[1673853921265,118.0033,24.464,24.438,47.26673091]
[1673853921479,118.0033,24.464,24.441,20.0]
[1673853921683,118.0033,24.464,24.441,41.97975]
[1673853921901,118.0033,24.464,24.442,87.06745807]
[1673853922108,20.0,24.469,24.444,20.0]
[1673853922328,117.1438,24.488,24.445,37.0]
[1673853922548,117.1438,24.488,24.446,1.97934]
[1673853922740,20.0,24.487,24.447,20.0]
[1673853922951,20.0,24.487,24.448,17.0]
[1673853923160,20.0,24.487,24.449,20.0]
[1673853923382,20.0,24.487,24.45,17.0]
[1673853924418,20.0,24.483,24.45,17.0]
[1673853925684,35.19661267,24.482,24.45,50.7381852]
[1673853925889,35.19661267,24.482,24.45,17.0]
[1673853926113,20.0,24.481,24.45,17.0]
[1673853928326,30.50577934,24.48,24.446,1.97934]
[1673853928538,20.0,24.479,24.445,20.0]
[1673853928752,50.50577934,24.478,24.442,20.0]
[1673853928936,20.0,24.478,24.443,20.0]
[1673853929148,20.0,24.478,24.444,20.0]
[1673853929568,20.0,24.478,24.445,20.0]
[1673853929795,20.0,24.478,24.446,18.97934]
[1673853930003,20.0,24.478,24.448,20.0]
[1673853930205,20.0,24.478,24.449,17.0]
[1673853930415,20.0,24.478,24.447,1.97926]
[1673853930626,20.0,24.478,24.447,55.7174452]
[1673853930846,20.0,24.478,24.448,17.0]
[1673853931683,20.0,24.478,24.449,20.0]
[1673853931882,20.0,24.478,24.447,55.7174452]
[1673853931883,20.0,24.478,24.447,35.7174452]
[1673853932220,20.0,24.476,24.43,18.89]
[1673853932440,20.0,24.476,24.431,1.98056]
[1673853932633,20.0,24.476,24.434,33.7381852]
[1673853932847,21.46196354,24.475,24.435,1.98023]
[1673853933161,18.85,24.47,24.435,12.18935716]
[1673853933482,18.85,24.47,24.421,20.0]
[1673853933483,41.46196354,24.469,24.421,20.0]
[1673853933694,20.0,24.468,24.428,14.17015716]
[1673853933901,73.00516246,24.468,24.428,14.17015716]
[1673853934115,20.0,24.466,24.429,12.18935716]
[1673853934518,20.0,24.466,24.43,20.0]
[1673853934736,20.0,24.466,24.43,21.98064]
[1673853935067,20.0,24.466,24.432,20.0]
[1673853935469,20.0,24.466,24.433,14.16974716]
[1673853935897,50.99156559,24.466,24.434,12.18935716]
[1673853936434,20.0,24.466,24.434,12.18935716]
[1673853936846,20.0,24.466,24.435,58.98023]
[1673853937059,30.94736559,24.465,24.435,21.98023]
[1673853937266,20.0,24.464,24.435,20.0]
[1673853937479,20.0,24.464,24.429,32.18935716]
[1673853937795,20.0,24.464,24.436,12.18935716]
[1673853938420,20.0,24.464,24.437,35.37158853]
[1673853938741,20.0,24.464,24.438,14.16934716]
[1673853938930,20.0,24.466,24.439,18.97991]
[1673853939137,20.0,24.466,24.439,31.16926716]
[1673853939359,20.0,24.466,24.44,12.18935716]
[1673853940004,20.0,24.466,24.426,20.0]
[1673853940200,48.47057032,24.466,24.432,12.18935716]
[1673853940409,48.47057032,24.466,24.433,20.0]
[1673853940831,48.47057032,24.466,24.434,12.18935716]
[1673853941258,48.47057032,24.466,24.435,20.0]
[1673853941466,48.47057032,24.466,24.434,12.18935716]
[1673853941688,41.46196354,24.466,24.426,20.0]
[1673853941879,41.46196354,24.466,24.436,12.18935716]
[1673853942088,138.2928,24.466,24.436,12.18935716]
[1673853942938,138.2928,24.466,24.437,17.0]
[1673853943470,138.2928,24.466,24.437,29.18935716]
[1673853943883,51.01326719,24.465,24.427,117.3357]
[1673853944091,21.46196354,24.465,24.432,12.18935716]
[1673853944311,20.0,24.459,24.427,117.3357]
[1673853944641,41.46196354,24.458,24.427,117.3357]
[1673853944959,41.46196354,24.457,24.428,12.18935716]
[1673853945570,20.0,24.457,24.428,12.18935716]
[1673853946629,29.55130365,24.456,24.427,117.3357]
[1673853946838,20.0,24.457,24.428,20.0]
[1673853947141,20.0,24.457,24.428,32.18935716]
[1673853947773,18.85,24.46,24.429,1.98072]
[1673853947979,20.0,24.462,24.429,1.98072]
[1673853948295,20.0,24.462,24.431,20.0]
[1673853948510,20.0,24.462,24.432,1.98048]
[1673853948721,20.0,24.462,24.432,14.16983716]
[1673853948953,20.0,24.462,24.433,12.18935716]
[1673853949560,20.0,24.462,24.433,14.16974716]
[1673853949989,118.2928,24.466,24.435,20.0]
[1673853950205,118.2928,24.466,24.436,21.98015]
[1673853950398,118.2928,24.466,24.438,20.0]
[1673853950816,118.2928,24.466,24.439,12.18935716]
[1673853952192,20.0,24.465,24.439,12.18935716]
[1673853952425,118.2928,24.466,24.439,14.16926716]
[1673853952625,118.2928,24.466,24.44,1.97983]
[1673853952820,118.2928,24.466,24.441,20.0]
[1673853953030,118.2928,24.466,24.442,21.97967]
[1673853953359,118.2928,24.466,24.444,20.0]
[1673853953563,118.2928,24.466,24.445,21.97942]
[1673853953770,118.2928,24.466,24.446,21.97934]
[1673853953980,118.2928,24.466,24.447,21.97926]
[1673853954209,118.2928,24.466,24.448,1.97918]
[1673853954388,118.2928,24.466,24.45,18.83]
[1673853954603,118.2928,24.466,24.451,21.97894]
[1673853954935,118.2928,24.466,24.452,21.97886]
[1673853955133,118.2928,24.466,24.453,20.0]
[1673853955342,118.2928,24.466,24.454,21.97869]
[1673853955572,118.2928,24.466,24.455,1.97861]
[1673853955784,118.2928,24.466,24.456,20.0]
[1673853956095,118.2928,24.466,24.458,20.0]
[1673853956406,93.2928,24.466,24.459,14.16764716]
[1673853956620,93.2928,24.466,24.461,20.0]
[1673853957019,93.2928,24.466,24.462,46.67786612]
[1673853957451,93.2928,24.466,24.463,12.18935716]
[1673853957874,93.2928,24.466,24.463,46.67786612]
[1673853958086,93.2928,24.466,24.464,34.48850896]
[1673853958283,93.2928,24.466,24.465,21.9778]
[1673853958493,93.2928,24.466,24.465,34.16715716]
[1673853958813,93.2928,24.466,24.465,68.65566612]
[1673853960404,93.2928,24.466,24.465,68.15566612]
[1673853961452,20.0,24.491,24.465,68.15566612]
[1673853961645,20.0,24.491,24.466,21.97772]
[1673853962177,20.0,24.491,24.468,20.0]
[1673853962714,20.0,24.491,24.47,20.0]
[1673853962903,20.0,24.504,24.47,20.0]
[1673853963119,20.0,24.504,24.471,46.67786612]
[1673853963328,20.0,24.491,24.471,46.67786612]
[1673853963544,20.0,24.491,24.472,46.67786612]
[1673853963969,20.0,24.491,24.473,12.18935716]
[1673853964481,20.0,24.504,24.473,12.18935716]
[1673853964702,20.0,24.504,24.474,40.0]
[1673853964898,20.0,24.504,24.475,1.977]
[1673853965113,20.0,24.504,24.475,14.16635716]
[1673853965330,20.0,24.504,24.476,32.18935716]
[1673853965540,20.0,24.504,24.476,12.18935716]
[1673853965740,119.4705,24.505,24.478,20.0]
[1673853966181,119.4705,24.505,24.479,14.16602716]
[1673853966377,119.4705,24.505,24.481,20.0]
[1673853966583,119.4705,24.505,24.481,21.97651]
[1673853966809,119.4705,24.505,24.483,20.0]
[1673853967218,119.4705,24.505,24.484,48.84453279]
[1673853967426,119.4705,24.505,24.484,12.18935716]
[1673853967644,119.4705,24.505,24.481,1.97651]
[1673853967645,20.0,24.504,24.485,12.18935716]
[1673853967872,20.0,24.504,24.454,343.12776536]
[1673853968072,20.0,24.504,24.475,12.18935716]
[1673853968288,20.0,24.504,24.474,36.65517563]
[1673853968491,20.0,24.502,24.468,45.43990526]
[1673853968700,20.0,24.502,24.467,12.18935716]
[1673853968910,21.46196354,24.501,24.465,20.0]
[1673853969123,19.0,24.5,24.465,32.18935716]
[1673853969340,20.0,24.499,24.466,12.18935716]
[1673853969553,20.0,24.499,24.467,20.0]
[1673853969764,20.0,24.499,24.466,12.18935716]
[1673853969950,20.0,24.499,24.468,12.18935716]
[1673853971020,20.0,24.498,24.461,112.5165]
[1673853971335,20.0,24.498,24.462,12.18935716]
[1673853971530,20.0,24.497,24.462,12.18935716]
[1673853972492,20.0,24.495,24.462,12.18935716]
[1673853972902,20.0,24.495,24.463,1.97797]
[1673853973114,20.0,24.495,24.464,20.0]
[1673853973330,20.0,24.495,24.464,32.18935716]
[1673853973538,20.0,24.495,24.465,12.18935716]
[1673853975310,20.0,24.495,24.466,17.0]
[1673853975541,108.7656,24.496,24.467,21.97764]
[1673853975756,118.6489,24.503,24.47,19.0]
[1673853976068,20.0,24.519,24.472,20.0]
[1673853976272,118.6489,24.513,24.474,20.0]
[1673853976482,20.0,24.512,24.475,1.977]
[1673853976690,20.0,24.512,24.476,20.0]
[1673853976907,20.0,24.504,24.477,18.97683]
[1673853977120,20.0,24.504,24.477,31.17071893]
[1673853977458,20.0,24.504,24.478,12.19388893]
[1673853977757,20.0,24.504,24.479,17.0]
[1673853978062,20.0,24.504,24.48,20.0]
[1673853978254,20.0,24.504,24.48,12.19388893]
[1673853978466,20.0,24.504,24.475,20.0]
[1673853979113,20.0,24.504,24.476,12.19388893]
[1673853979320,20.0,24.512,24.477,1.97683]
[1673853979534,20.0,24.512,24.478,20.0]
[1673853979746,20.0,24.512,24.479,1.97667]
[1673853979940,20.0,24.504,24.479,14.17055893]
[1673853980268,20.0,24.504,24.48,12.19388893]
[1673853981330,20.0,24.504,24.474,20.0]
[1673853981629,20.0,24.504,24.475,20.0]
[1673853981836,20.0,24.504,24.476,20.0]
[1673853982069,20.0,24.504,24.476,32.19388893]
[1673853982265,20.0,24.512,24.477,12.19388893]
[1673853982476,20.0,24.512,24.478,21.97675]
[1673853982686,20.0,24.512,24.479,1.97667]
[1673853982911,20.0,24.512,24.479,26.36444786]
[1673853983124,20.0,24.512,24.48,20.0]
[1673853983322,20.0,24.512,24.48,34.17047893]
[1673853983540,20.0,24.512,24.481,12.19388893]
[1673853983855,20.0,24.512,24.482,20.0]
[1673853984051,20.0,24.504,24.482,20.0]
[1673853984481,20.0,24.504,24.483,12.19388893]
[1673853984796,20.0,24.504,24.482,20.0]
[1673853984797,20.0,24.512,24.484,20.0]
[1673853985013,30.0,24.5,24.484,20.0]
[1673853985227,30.0,24.5,24.485,12.19388893]
[1673853985644,30.0,24.5,24.486,21.97611]
[1673853985836,109.2968,24.519,24.488,20.0]
[1673853986046,109.2968,24.519,24.491,20.0]
[1673853986357,20.0,24.539,24.493,20.0]
[1673853986572,20.0,24.539,24.494,20.0]
[1673853986792,20.0,24.529,24.495,20.0]
[1673853987007,20.0,24.529,24.497,20.0]
[1673853987206,20.0,24.529,24.498,21.97514]
[1673853987413,20.0,24.529,24.499,20.0]
[1673853987624,109.2968,24.53,24.5,20.0]
[1673853987952,20.0,24.539,24.501,21.9749]
[1673853988268,21.46196354,24.529,24.502,1.97482]
[1673853988476,21.46196354,24.529,24.481,20.0]
[1673853988796,20.0,24.528,24.497,12.19388893]
[1673853989009,20.0,24.528,24.482,1.97643]
[1673853989217,20.0,24.527,24.483,12.19388893]
[1673853989530,20.0,24.526,24.484,20.0]
[1673853989738,133.3372,24.526,24.484,20.0]
[1673853989956,133.3372,24.526,24.485,12.19388893]
[1673853990149,133.3372,24.526,24.486,20.0]
[1673853990581,133.3372,24.526,24.487,12.19388893]
[1673853990908,133.3372,24.526,24.489,20.0]
[1673853991095,133.3372,24.526,24.49,20.0]
[1673853991421,133.3372,24.526,24.491,20.0]
[1673853991619,133.3372,24.526,24.491,32.19388893]
[1673853991941,133.3372,24.526,24.492,32.19388893]
[1673853992489,133.3372,24.526,24.493,32.19388893]
[1673853992681,133.3372,24.526,24.495,20.0]
[1673853993084,133.3372,24.526,24.496,32.19388893]
[1673853993528,133.3372,24.526,24.497,12.19388893]
[1673853993837,133.3372,24.526,24.499,20.0]
[1673853994258,133.3372,24.526,24.5,32.19388893]
[1673853994663,133.3372,24.526,24.501,12.19388893]
[1673853994889,133.3372,24.526,24.502,20.0]
[1673853995206,113.3372,24.526,24.504,20.0]
[1673853995411,113.3372,24.526,24.503,12.19388893]
[1673853995623,113.3372,24.526,24.505,12.19388893]
[1673853996695,113.3372,24.526,24.506,20.0]
[1673853997228,20.0,24.535,24.507,12.19388893]
[1673853997419,108.8429,24.532,24.507,12.19388893]
[1673853997632,20.0,24.53,24.507,12.19388893]
[1673853998270,20.0,24.53,24.508,20.0]
[1673853998480,117.6032,24.531,24.508,20.0]
[1673853998696,117.6032,24.531,24.509,12.19388893]
[1673853998895,20.0,24.53,24.509,12.19388893]
[1673853999316,20.0,24.53,24.51,20.0]
[1673853999735,20.0,24.53,24.511,12.19388893]
[1673854000169,20.0,24.53,24.512,20.0]
[1673854000698,20.0,24.53,24.512,12.19388893]
[1673854000699,31.19797032,24.529,24.512,12.19388893]
[1673854000890,20.0,24.528,24.484,20.0]
[1673854001099,20.0,24.528,24.487,1.97603]
[1673854001321,20.0,24.528,24.487,14.16991893]
[1673854001536,41.46196354,24.528,24.488,32.19388893]
[1673854001730,20.0,24.526,24.489,1.97587]
[1673854001934,20.0,24.526,24.489,14.16975893]
[1673854002375,20.0,24.526,24.49,12.19388893]
[1673854002899,20.0,24.526,24.491,20.0]
[1673854003111,20.0,24.526,24.491,21.9757]
[1673854003301,20.0,24.526,24.492,12.19388893]
[1673854003506,20.0,24.526,24.493,20.0]
[1673854003721,20.0,24.526,24.494,17.0]
[1673854003933,20.0,24.526,24.494,12.19388893]
[1673854004167,20.0,24.526,24.495,12.19388893]
[1673854004382,21.46196354,24.525,24.491,21.9757]
[1673854004561,19.01,24.52,24.488,20.0]
[1673854004773,19.01,24.52,24.48,20.0]
[1673854004774,128.1919,24.519,24.485,12.19388893]
[1673854005205,128.1919,24.519,24.488,12.19388893]
[1673854005206,20.0,24.518,24.488,12.19388893]
[1673854005421,133.991,24.518,24.488,12.19388893]
[1673854006348,133.991,24.518,24.489,17.0]
[1673854006789,133.991,24.518,24.489,12.19388893]
[1673854007002,176.91492708,24.518,24.48,20.0]
[1673854007318,133.991,24.518,24.48,20.0]
[1673854007755,21.46196354,24.517,24.476,20.0]
[1673854007971,20.0,24.516,24.476,20.0]
[1673854008168,20.0,24.516,24.477,32.19388893]
[1673854008591,20.0,24.516,24.478,1.97675]
[1673854008903,20.0,24.516,24.478,34.17063893]
[1673854009225,20.0,24.509,24.478,20.0]
[1673854009855,20.0,24.507,24.476,20.0]
[1673854010269,20.0,24.507,24.478,20.0]
[1673854010674,20.0,24.505,24.479,32.50991319]
[1673854010907,20.0,24.505,24.479,12.50991319]
[1673854011116,20.0,24.505,24.481,20.0]
[1673854011325,136.0641,24.505,24.482,20.0]
[1673854011645,136.0641,24.505,24.482,32.50991319]
[1673854011851,136.0641,24.505,24.483,12.50991319]
[1673854012064,136.0641,24.505,24.484,20.0]
[1673854012584,117.0641,24.505,24.485,12.50991319]
[1673854012780,117.0641,24.505,24.486,37.0]
[1673854013310,117.0641,24.505,24.487,12.50991319]
[1673854013636,20.0,24.504,24.488,17.0]
[1673854013849,117.0641,24.505,24.488,17.0]
[1673854014041,117.0641,24.505,24.489,12.50991319]
[1673854014252,117.0641,24.505,24.484,20.0]
[1673854014471,20.0,24.504,24.483,12.50991319]
[1673854014791,20.0,24.504,24.484,20.0]
[1673854015216,20.0,24.504,24.475,20.0]
[1673854015217,20.0,24.504,24.476,20.0]
[1673854015419,20.0,24.504,24.484,12.50991319]
[1673854015620,20.0,24.504,24.485,20.0]
[1673854015831,20.0,24.504,24.486,17.0]
[1673854016049,20.0,24.504,24.485,20.0]
[1673854016486,20.0,24.502,24.485,20.0]
[1673854016784,30.77313898,24.501,24.476,12.50991319]
[1673854016979,18.9,24.5,24.483,12.50991319]
[1673854017185,20.0,24.499,24.478,12.50991319]
[1673854017408,57.91330718,24.499,24.461,20.0]
[1673854017618,20.0,24.497,24.463,12.50991319]
[1673854017816,18.9,24.49,24.463,12.50991319]
[1673854018026,20.0,24.489,24.463,12.50991319]
[1673854018258,57.91330718,24.489,24.463,12.50991319]
[1673854018677,134.834128,24.489,24.463,12.50991319]
[1673854019082,134.834128,24.489,24.464,20.0]
[1673854019294,134.834128,24.489,24.46,20.0]
[1673854019295,134.834128,24.489,24.462,20.0]
[1673854019507,134.834128,24.489,24.463,20.0]
[1673854019841,134.834128,24.489,24.463,31.04993195]
[1673854020034,165.60726698,24.489,24.464,11.04993195]
[1673854020250,165.60726698,24.489,24.451,20.0]
[1673854020251,20.0,24.487,24.451,20.0]
[1673854020455,20.0,24.487,24.452,11.04993195]
[1673854021629,20.0,24.487,24.454,20.0]
[1673854021811,20.0,24.487,24.456,20.0]
[1673854022023,20.0,24.487,24.458,20.0]
[1673854022449,20.0,24.487,24.459,28.04993195]
[1673854022673,134.834128,24.489,24.459,28.04993195]
[1673854022882,115.0941,24.489,24.461,20.0]
[1673854023075,115.0941,24.489,24.462,17.0]
[1673854023290,115.0941,24.489,24.464,20.0]
[1673854023498,115.0941,24.489,24.465,17.0]
[1673854023705,115.0941,24.489,24.44,79.4301]
[1673854024017,20.0,24.488,24.448,20.0]
[1673854024650,20.0,24.488,24.452,11.04993195]
[1673854024877,50.77313898,24.488,24.452,11.04993195]